[Event "Austrian Women Bundesliga 2023-24"]
[Site "Austria"]
[Date "2024.03.24"]
[Round "6.1"]
[White "Brunello, Marina"]
[Black "Danielian, Elina"]
[Result "1/2-1/2"]
[ECO "B40"]
[WhiteElo "2358"]
[BlackElo "2396"]
[Annotator "RC"]
[PlyCount "85"]
[EventDate "2023.11.21"]
[EventType "team-tourn"]
[EventCountry "AUT"]
[SourceTitle "playchess.com"]
[Source "ChessBase"]
[SourceQuality "1"]
[TimeControl "40/5400+30:1800+30"]

1. e4 {[%emt 0:00:04]} c5 {[%emt 0:00:08]} 2. Nf3 {[%emt 0:00:07]} e6 {[%emt 0:00:06]} 3. d4 {[%emt 0:00:50]} cxd4 {[%emt 0:00:05]} 4. Nxd4 {[%emt 0:00:03]} Nf6 {[%emt 0:00:09]} 5. Nc3 {[%emt 0:00:04]} Nc6 {[%emt 0:00:05]} 6. Ndb5 {[%emt 0:02:43]} Bb4 {[%emt 0:00:12]} 7. a3 {[%emt 0:00:46]} Bxc3+ {[%emt 0:00:07]} 8. Nxc3 {[%emt 0:00:03]} d5 {[%emt 0:00:05]} 9. exd5 {[%emt 0:03:55]} exd5 {[%emt 0:00:04]} 10. Bd3 {[%emt 0:00:03]} O-O {[%emt 0:00:20]} 11. O-O {[%emt 0:00:02]} d4 {[%emt 0:00:05]} 12. Ne4 {[%emt 0:06:06]} Bf5 {[%emt 0:03:45]} 13. Bg5 {[%emt 0:08:47]} Bxe4 {[%emt 0:00:06]} 14. Bxe4 {[%emt 0:00:04]} h6 {[%emt 0:00:29]} 15. Bh4 {[%emt 0:07:27]} g5 {[%emt 0:00:14]} 16. Bxc6 {[%emt 0:00:04]} bxc6 {[%emt 0:00:03]} 17. Bg3 {[%emt 0:00:05]} Qd5 {[%emt 0:01:25]} 18. Qd3 {[%emt 0:05:10]} Ne4 {[%emt 0:07:25]} 19. Rad1 {[%emt 0:03:29]} Rad8 {[%emt 0:05:57]} 20. Rfe1 {[%emt 0:05:41]} Rfe8 {[%emt 0:01:42]} 21. Qa6 {[%emt 0:15:55]} h5 {[%emt 0:10:48]} 22. Qxa7 {[%emt 0:07:59]} Rd7 {[%emt 0:28:58]} 23. Qa6 {[%emt 0:01:32]} h4 {[%emt 0:02:44]} 24. f3 {[%emt 0:00:12]} hxg3 {[%emt 0:00:10]} 25. Rxe4 {[%emt 0:01:35]} gxh2+ {[%emt 0:01:45]} 26. Kxh2 {[%emt 0:01:30]} Rxe4 {[%emt 0:00:38]} 27. fxe4 {[%emt 0:00:02]} Qe5+ {[%emt 0:01:58]} 28. Kg1 {[%emt 0:00:39]} Rd6 {[%emt 0:02:37]} 29. Qc8+ {[%emt 0:02:17]} Kg7 {[%emt 0:00:05]} 30. Qf5 {[%emt 0:00:57]} Qxf5 {[%emt 0:14:23]} 31. exf5 {[%emt 0:00:05]} Kf6 {[%emt 0:00:02]} 32. b4 {[%emt 0:07:14]} Kxf5 {[%emt 0:01:06]} 33. a4 {[%emt 0:00:37]} Ke4 {[%emt 0:03:11]} 34. Kf2 {[%emt 0:02:09]} f5 {[%emt 0:14:03]} 35. a5 {[%emt 0:02:09]} Rd7 {[%emt 0:00:17]} 36. Ke2 {[%emt 0:01:09]} Re7 {[%emt 0:02:36]} 37. Ra1 {[%emt 0:01:47]} Kd5+ {[%emt 0:00:19]} 38. Kd3 {[%emt 0:00:12]} Re3+ {[%emt 0:00:36]} 39. Kd2 {[%emt 0:00:02]} Kc4 {[%emt 0:00:34]} 40. a6 {[%emt 0:01:04]} Re8 {[%emt 0:00:03]} 41. Ra5 {[%emt 0:38:34]} Kxb4 {[%emt 0:30:37]} 42. Rxf5 {[%emt 0:00:04]} Ra8 {[%emt 0:00:10]} 43. Rxg5 {[%emt 0:01:05]} 1/2-1/2

[Event "Austrian Women Bundesliga 2023-24"]
[Site "Austria"]
[Date "2024.03.24"]
[Round "6.2"]
[White "Osmak, Yuliia"]
[Black "Gueci, Tea"]
[Result "1-0"]
[ECO "D35"]
[WhiteElo "2452"]
[BlackElo "2193"]
[Annotator "TA"]
[PlyCount "131"]
[EventDate "2023.11.21"]
[EventType "team-tourn"]
[EventCountry "AUT"]
[SourceTitle "playchess.com"]
[Source "ChessBase"]
[SourceQuality "1"]
[TimeControl "40/5400+30:1800+30"]

{[%evp 18,131,20,14,19,16,24,20,25,18,22,22,23,22,31,4,23,0,0,0,3,2,8,6,12,16,29,20,14,13,13,7,25,21,24,24,20,25,25,17,17,18,18,18,18,22,60,64,48,40,39,39,39,39,41,38,42,7,6,8,17,17,17,17,17,0,19,17,21,25,32,10,62,50,66,66,66,54,86,38,95,95,95,100,132,8,8,8,8,8,8,8,8,8,8,8,8,8,29965,29965,29968,29970,29978,29979,29979,29980,29980,29981,29981,29981,29982,29983,29983,29984,29988,29982]} 1. d4 {[%emt 0:00:02]} d5 {[%emt 0:00:03]} 2. c4 {[%emt 0:00:05]} e6 {[%emt 0:00:03]} 3. Nc3 {[%emt 0:00:07]} Nf6 {[%emt 0:00:05]} 4. cxd5 {[%emt 0:00:18]} exd5 {[%emt 0:00:05]} 5. Bg5 {[%emt 0:00:02]} c6 {[%emt 0:00:09]} 6. e3 {[%emt 0:00:10]} h6 {[%emt 0:00:04]} 7. Bh4 {[%emt 0:00:31]} Be7 {[%emt 0:00:05]} 8. Bd3 {[%emt 0:01:46]} O-O {[%emt 0:00:08]} 9. Qc2 {[%emt 0:01:00]} Re8 {[%emt 0:00:05]} 10. Nge2 {[%emt 0:01:38]} a5 {[%emt 0:00:09]} 11. O-O {[%emt 0:01:09]} Na6 {[%emt 0:00:05][%cal Bb8a6,Ba6c7,Bc7e6][%mdl 32]} 12. a3 {[%emt 0:00:40] Es drohte Nb4} Nc7 {[%emt 0:00:05] Die Stellung ist ausgeglichen.} 13. Rad1 {[%emt 0:18:51]} Ne6 {[%emt 0:05:49]} 14. Rfe1 {[%emt 0:02:29]} b5 {[%emt 0:11:32]} 15. h3 {[%emt 0:08:23]} Ba6 {[%emt 0:05:50]} 16. Bf5 {[%emt 0:04:20]} b4 {[%emt 0:09:45]} 17. axb4 {[%emt 0:04:11]} axb4 {[%emt 0:00:27]} 18. Bxe6 {[%emt 0:01:08]} bxc3 {[%emt 0:03:35]} 19. Bf5 {[%emt 0:00:32]} cxb2 {[%emt 0:03:13]} 20. Qxb2 {[%emt 0:00:35]} Ne4 {[%emt 0:09:05]} 21. Bxe7 {[%emt 0:01:58]} Qxe7 {[%emt 0:00:42]} 22. Bxe4 {[%emt 0:07:12]} Qxe4 {[%emt 0:01:21]} 23. Nc3 {[%emt 0:06:52]} Qg6 {[%emt 0:02:38]} 24. Ra1 {[%emt 0:01:02]} Rab8 {[%emt 0:05:16]} 25. Qd2 {[%emt 0:04:12]} Bc8 {[%emt 0:02:05]} 26. Ne2 {[%emt 0:02:23]} Bf5 {[%emt 0:06:57]} (26... Bxh3 27. Nf4 Qf5 28. Nxh3 $18) 27. Ra6 {[%emt 0:05:54]} Ra8 {[%emt 0:09:01]} (27... Bxh3 28. Nf4 Qf6 29. Nxh3 $18) 28. Nf4 {[%emt 0:02:35]} Qd6 {[%emt 0:01:49]} 29. Qa5 {[%emt 0:04:07]} Rxa6 {[%emt 0:02:12]} 30. Qxa6 {[%emt 0:00:03]} Rb8 {[%emt 0:05:11]} 31. Rc1 {[%emt 0:01:36]} Rb1 {[%emt 0:00:41]} 32. Rxb1 {[%emt 0:01:36]} Bxb1 $14 {[%emt 0:00:10][%mdl 4096] Endspiel. KQB-KQN} 33. Qc8+ {[%emt 0:03:24]} Kh7 {[%emt 0:00:21]} 34. Qb7 {[%emt 0:00:17][%csl LRb1,LRf7]} Bg6 {[%emt 0:01:21]} 35. h4 {[%emt 0:00:11] Droht stark h5.} Qf6 {[%emt 0:03:37]} 36. Qc7 {[%emt 0:03:53]} Bf5 {[%emt 0:01:42]} 37. Nh5 {[%emt 0:03:08]} Qg6 {[%emt 0:01:11]} 38. Ng3 {[%emt 0:00:19]} (38. Nf4 $5 Qf6 $8 39. Nh5 $11) 38... Bd3 {[%emt 0:01:23]} 39. Qe7 {[%emt 0:00:56]} Bb5 {[%emt 0:07:28]} 40. Qe5 {[%emt 0:02:47]} Bd3 {[%emt 0:00:41] Wehrt Nf5 ab} 41. Qe7 {[%emt 0:31:19]} Bb5 {[%emt 0:30:52]} 42. Kh2 {[%emt 0:02:08]} Qe6 {[%emt 0:02:47]} 43. Qxe6 {[%emt 0:00:00]} fxe6 $11 {[%emt 0:00:00] KB-KN} 44. Kh3 {[%emt 0:00:00]} g6 {[%emt 0:00:00]} ({Günstiger ist} 44... Kg6 $11) 45. Kg4 {[%emt 0:00:00] Kf4 ist eine echte Drohung.} Kg7 {[%emt 0:00:00]} 46. h5 $1 {[%emt 0:00:00]} gxh5+ {[%emt 0:00:00]} 47. Nxh5+ {[%emt 0:00:00]} Kg6 {[%emt 0:00:00] [#]} 48. Ng3 {[%emt 0:00:00]} (48. Kh4 $1 $16) 48... e5 {[%emt 0:00:00]} 49. dxe5 $16 {[%emt 0:03:24]} c5 {[%emt 0:00:00]} 50. f4 {[%emt 0:00:04] Droht f5+ und aus.} h5+ {[%emt 0:00:00]} 51. Kf3 {[%emt 0:00:20]} (51. Kh4 $16 Bd7 52. Nxh5) 51... h4 $11 {[%emt 0:00:00]} 52. Ne2 {[%emt 0:02:10]} Kf5 {[%emt 0:00:00]} 53. g4+ {[%emt 0:01:04]} hxg3 {[%emt 0:00:00]} 54. Nxg3+ {[%emt 0:00:03]} Ke6 {[%emt 0:00:00]} 55. Nh5 {[%emt 0:01:52]} Bd3 {[%emt 0:00:55]} 56. Nf6 {[%emt 0:00:46]} Bb5 {[%emt 0:03:31] Wehrt Ne8 ab} 57. Kf2 {[%emt 0:00:58]} Kf5 $2 {[%emt 0:00:33][%mdl 8192] [#] Führt Schwarz ins Verderben.} (57... d4 $11) 58. Nxd5 {[%emt 0:00:17] Weiß setzt Matt.} Bd3 {[%emt 0:00:14]} 59. Nc3 {[%emt 0:00:33]} c4 {[%emt 0:00:43]} 60. Kf3 {[%emt 0:00:15]} Bf1 {[%emt 0:00:42]} 61. e4+ {[%emt 0:00:08]} Ke6 {[%emt 0:00:13]} 62. Ke3 {[%emt 0:00:04]} Bh3 {[%emt 0:00:34]} 63. Kd4 {[%emt 0:00:05]} Bf1 {[%emt 0:00:02]} 64. f5+ {[%emt 0:00:07]} Ke7 {[%emt 0:00:14]} 65. Nd5+ {[%emt 0:00:06]} Kd7 {[%emt 0:00:13]} 66. Nb6+ {[%emt 0:00:06] Gewichteter Fehlerwert: Weiß=0.07 (makellos) /Schwarz=0.19 (sehr präzise) .  Verlustzug:     	---       	Schwarz=1     Fehler:       	Weiß=2     	Schwarz=2     Ungenau:       	Weiß=2     	Schwarz=3     OK:         	Weiß=16    	Schwarz=18    Bester:       	Weiß=3     	Schwarz=4     Stark:        	Weiß=1     	---} 1-0

[Event "Austrian Women Bundesliga 2023-24"]
[Site "Austria"]
[Date "2024.03.24"]
[Round "6.3"]
[White "Khrapko, Marharyta"]
[Black "Ushenina, Anna"]
[Result "0-1"]
[ECO "B12"]
[WhiteElo "2218"]
[BlackElo "2415"]
[Annotator "RC"]
[PlyCount "122"]
[EventDate "2023.11.21"]
[EventType "team-tourn"]
[EventCountry "AUT"]
[SourceTitle "playchess.com"]
[Source "ChessBase"]
[SourceQuality "1"]
[TimeControl "40/5400+30:1800+30"]

1. e4 {[%emt 0:00:01]} c6 {[%emt 0:00:13]} 2. d4 {[%emt 0:00:06]} d5 {[%emt 0:00:06]} 3. f3 {[%emt 0:00:02]} dxe4 {[%emt 0:02:48]} 4. fxe4 {[%emt 0:00:06]} e5 {[%emt 0:00:04]} 5. Nf3 {[%emt 0:00:03]} Bg4 {[%emt 0:02:54]} 6. c3 {[%emt 0:00:01]} Nd7 {[%emt 0:01:46]} 7. Bd3 {[%emt 0:00:30]} Ngf6 {[%emt 0:05:52]} 8. O-O {[%emt 0:01:09]} Bd6 {[%emt 0:02:08]} 9. Na3 {[%emt 0:00:14]} b5 {[%emt 0:19:56]} 10. Nc2 {[%emt 0:00:31]} Qc7 {[%emt 0:13:11]} 11. h3 {[%emt 0:04:02]} Bh5 {[%emt 0:00:14]} 12. Ne3 {[%emt 0:01:19]} O-O {[%emt 0:02:05]} 13. Nf5 {[%emt 0:02:10]} Rfe8 {[%emt 0:00:28]} 14. Qc2 {[%emt 0:00:53]} Bg6 {[%emt 0:07:32]} 15. N3h4 {[%emt 0:03:52]} Bf8 {[%emt 0:08:07]} 16. Bg5 {[%emt 0:06:00]} a6 {[%emt 0:04:14]} 17. Rae1 {[%emt 0:11:35]} c5 {[%emt 0:06:22]} 18. dxe5 {[%emt 0:32:04]} Nxe5 {[%emt 0:03:05]} 19. Bxf6 {[%emt 0:11:07]} gxf6 {[%emt 0:00:07]} 20. c4 {[%emt 0:01:32]} Rad8 {[%emt 0:02:05]} 21. Be2 {[%emt 0:03:23]} Qb7 {[%emt 0:06:13]} 22. b3 {[%emt 0:01:40]} Nc6 {[%emt 0:00:26]} 23. Bf3 {[%emt 0:07:47]} Re5 {[%emt 0:01:19]} 24. Qc1 {[%emt 0:03:15]} Nd4 {[%emt 0:01:11]} 25. Nh6+ {[%emt 0:00:51]} Bxh6 {[%emt 0:01:42]} 26. Qxh6 {[%emt 0:00:01]} Qe7 {[%emt 0:02:37]} 27. Qf4 {[%emt 0:03:57]} f5 {[%emt 0:01:50]} 28. Nxg6 {[%emt 0:05:30]} hxg6 {[%emt 0:00:31]} 29. h4 {[%emt 0:00:18]} Re8 {[%emt 0:01:49]} 30. cxb5 {[%emt 0:00:01]} axb5 {[%emt 0:00:03]} 31. h5 {[%emt 0:01:11]} fxe4 {[%emt 0:02:50]} 32. hxg6 {[%emt 0:00:18]} fxg6 {[%emt 0:00:09]} 33. Bd1 {[%emt 0:00:57]} Kg7 {[%emt 0:00:51]} 34. b4 {[%emt 0:00:21]} cxb4 {[%emt 0:01:02]} 35. Bb3 {[%emt 0:00:27]} Nxb3 {[%emt 0:00:49]} 36. axb3 {[%emt 0:00:01]} Qc5+ {[%emt 0:00:25]} 37. Qe3 {[%emt 0:00:52]} Rc8 {[%emt 0:01:09]} 38. Qxc5 {[%emt 0:00:43]} Rcxc5 39. Ra1 {[%emt 0:00:32]} Rc3 {[%emt 0:01:03]} 40. Ra7+ {[%emt 0:00:29]} Kh6 {[%emt 0:00:03]} 41. Rff7 {[%emt 0:08:25]} e3 {[%emt 0:14:00]} 42. Rfe7 {[%emt 0:01:24]} Rxe7 {[%emt 0:02:20]} 43. Rxe7 {[%emt 0:00:02]} Kg5 {[%emt 0:00:48]} 44. Kf1 {[%emt 0:02:11]} Rxb3 {[%emt 0:00:40]} 45. Ke2 {[%emt 0:01:03]} Kf4 {[%emt 0:02:50]} 46. Rf7+ {[%emt 0:02:38]} Kg4 {[%emt 0:00:52]} 47. Rg7 {[%emt 0:03:14]} g5 {[%emt 0:00:15]} 48. g3 {[%emt 0:07:18]} Rc3 {[%emt 0:04:37]} 49. Rb7 {[%emt 0:02:24]} Rc5 {[%emt 0:00:05]} 50. Re7 {[%emt 0:00:41]} Kxg3 {[%emt 0:00:37]} 51. Re4 {[%emt 0:01:29]} g4 {[%emt 0:02:03]} 52. Kxe3 {[%emt 0:01:21]} Rc4 {[%emt 0:02:17]} 53. Re5 {[%emt 0:00:41]} Kg2 {[%emt 0:00:25]} 54. Rxb5 {[%emt 0:02:26]} g3 {[%emt 0:00:04]} 55. Ke2 {[%emt 0:01:51]} Rf4 {[%emt 0:00:57]} 56. Rb8 {[%emt 0:00:23]} Re4+ {[%emt 0:01:05]} 57. Kd3 {[%emt 0:00:06]} Kf3 {[%emt 0:00:12]} 58. Rg8 {[%emt 0:00:43]} Rf4 {[%emt 0:00:21]} 59. Re8 {[%emt 0:00:50]} g2 {[%emt 0:00:21]} 60. Re3+ {[%emt 0:00:45]} Kf2 {[%emt 0:00:11]} 61. Re2+ {[%emt 0:00:25]} Kg3 {[%emt 0:00:18]} 0-1

[Event "Austrian Women Bundesliga 2023-24"]
[Site "Austria"]
[Date "2024.03.24"]
[Round "6.4"]
[White "Matnadze Bujiashvili, Ann"]
[Black "Stangl, Anita"]
[Result "1-0"]
[ECO "A40"]
[WhiteElo "2359"]
[BlackElo "2070"]
[Annotator "RC"]
[PlyCount "107"]
[EventDate "2023.11.21"]
[EventType "team-tourn"]
[EventCountry "AUT"]
[SourceTitle "playchess.com"]
[Source "ChessBase"]
[SourceQuality "1"]
[TimeControl "40/5400+30:1800+30"]

1. d4 {[%emt 0:00:03]} e6 {[%emt 0:00:05]} 2. c4 {[%emt 0:00:06]} d5 {[%emt 0:00:26]} 3. Nf3 {[%emt 0:00:09]} c6 {[%emt 0:03:28]} 4. Qc2 {[%emt 0:00:32]} dxc4 {[%emt 0:03:20]} 5. Qxc4 {[%emt 0:00:07]} Nf6 {[%emt 0:00:09]} 6. g3 {[%emt 0:00:07]} Be7 {[%emt 0:03:24]} 7. Bg2 {[%emt 0:00:06]} O-O {[%emt 0:00:06]} 8. O-O {[%emt 0:00:06]} b5 {[%emt 0:02:55]} 9. Qc2 {[%emt 0:00:22]} Qb6 {[%emt 0:00:26]} 10. a4 {[%emt 0:01:43]} a5 {[%emt 0:01:56]} 11. Bg5 {[%emt 0:08:01]} h6 {[%emt 0:02:59]} 12. Bxf6 {[%emt 0:00:11]} Bxf6 {[%emt 0:00:04]} 13. axb5 {[%emt 0:03:46]} Qxb5 {[%emt 0:09:49]} 14. Nc3 {[%emt 0:01:54]} Qb6 {[%emt 0:05:06]} 15. Na4 {[%emt 0:00:59]} Qb5 {[%emt 0:00:14]} 16. Rfc1 {[%emt 0:01:50]} Ba6 {[%emt 0:05:22]} 17. e3 {[%emt 0:01:19]} Qb4 {[%emt 0:06:37]} 18. Nc5 {[%emt 0:01:42]} Bb5 {[%emt 0:01:34]} 19. Ne1 {[%emt 0:04:23]} a4 {[%emt 0:02:56]} 20. Qc3 {[%emt 0:09:05]} Qxc3 {[%emt 0:05:04]} 21. bxc3 {[%emt 0:00:33]} e5 {[%emt 0:07:46]} 22. c4 {[%emt 0:03:15]} Ba6 {[%emt 0:00:39]} 23. dxe5 {[%emt 0:04:08]} Bxe5 {[%emt 0:06:59]} 24. Rxa4 {[%emt 0:00:08]} Bb7 {[%emt 0:02:54]} 25. Rxa8 {[%emt 0:00:49]} Bxa8 {[%emt 0:00:02]} 26. Ned3 {[%emt 0:00:30]} Bf6 {[%emt 0:00:15]} 27. Rc2 {[%emt 0:01:25]} Rd8 {[%emt 0:01:10]} 28. Bh3 {[%emt 0:20:48]} Bb7 {[%emt 0:03:55]} 29. Ra2 {[%emt 0:01:46]} Bc8 {[%emt 0:03:49]} 30. Bxc8 {[%emt 0:00:12]} Rxc8 {[%emt 0:00:02]} 31. Ra8 {[%emt 0:06:14]} Rd8 {[%emt 0:02:44]} 32. Kf1 {[%emt 0:00:56]} Be7 {[%emt 0:00:50]} 33. Ke2 {[%emt 0:00:41]} Rf8 {[%emt 0:11:55]} 34. Ra7 {[%emt 0:02:15]} Re8 {[%emt 0:00:11]} 35. h4 {[%emt 0:08:31]} Kf8 {[%emt 0:02:21]} 36. Ra8 {[%emt 0:03:13]} Bd6 {[%emt 0:00:39]} 37. f4 {[%emt 0:03:52]} f5 {[%emt 0:02:33]} 38. h5 {[%emt 0:00:55]} Kf7 {[%emt 0:00:50]} 39. Kf3 {[%emt 0:00:33]} Re7 {[%emt 0:00:37]} 40. Nb3 {[%emt 0:07:28]} Nd7 {[%emt 0:02:32]} 41. c5 {[%emt 0:32:01]} Bc7 {[%emt 0:31:03]} 42. Nd4 {[%emt 0:00:30]} Nf6 {[%emt 0:01:02]} 43. Nxc6 {[%emt 0:00:33]} Re4 {[%emt 0:00:00]} 44. Nd4 {[%emt 0:00:00]} g6 {[%emt 0:00:00]} 45. Ra7 {[%emt 0:00:00]} Nd5 {[%emt 0:00:00]} 46. hxg6+ {[%emt 0:00:00]} Kxg6 {[%emt 0:00:00]} 47. Nxf5 {[%emt 0:00:00]} Rc4 {[%emt 0:00:00]} 48. e4 {[%emt 0:00:00]} Rc3 {[%emt 0:00:00]} 49. exd5 {[%emt 0:00:00]} Kxf5 {[%emt 0:00:00]} 50. g4+ {[%emt 0:00:00]} Kf6 {[%emt 0:00:00]} 51. Rxc7 {[%emt 0:00:00]} Rxd3+ {[%emt 0:00:00]} 52. Ke4 {[%emt 0:00:00]} Rd1 {[%emt 0:00:00]} 53. Rc6+ {[%emt 0:00:00]} Kg7 {[%emt 0:00:00]} 54. Re6 {[%emt 0:00:00]} 1-0

[Event "Austrian Women Bundesliga 2023-24"]
[Site "Austria"]
[Date "2024.03.24"]
[Round "6.5"]
[White "Teuschler, Barbara"]
[Black "Unuk, Laura"]
[Result "1/2-1/2"]
[ECO "C55"]
[WhiteElo "2048"]
[BlackElo "2341"]
[Annotator "RC"]
[PlyCount "93"]
[EventDate "2023.11.21"]
[EventType "team-tourn"]
[EventCountry "AUT"]
[SourceTitle "playchess.com"]
[Source "ChessBase"]
[SourceQuality "1"]
[TimeControl "40/5400+30:1800+30"]

1. e4 {[%emt 0:00:01]} e5 {[%emt 0:00:26]} 2. Nf3 {[%emt 0:00:06]} Nc6 {[%emt 0:00:04]} 3. Bc4 {[%emt 0:00:18]} Nf6 {[%emt 0:00:06]} 4. d3 {[%emt 0:00:16]} d5 {[%emt 0:00:11]} 5. exd5 {[%emt 0:00:08]} Nxd5 {[%emt 0:00:04]} 6. O-O {[%emt 0:01:50]} Nb6 {[%emt 0:02:28]} 7. Bb3 {[%emt 0:00:18]} Bg4 {[%emt 0:01:48]} 8. Re1 {[%emt 0:01:24]} Be7 {[%emt 0:23:55]} 9. Nbd2 {[%emt 0:04:17]} Qd7 {[%emt 0:02:06]} 10. Nf1 {[%emt 0:06:09]} O-O-O {[%emt 0:18:51]} 11. h3 {[%emt 0:06:06]} Bxf3 {[%emt 0:00:29]} 12. Qxf3 {[%emt 0:00:02]} f5 {[%emt 0:20:06]} 13. Be3 {[%emt 0:11:35]} Rhf8 {[%emt 0:02:19]} 14. a4 {[%emt 0:08:04]} Nd5 {[%emt 0:02:29]} 15. a5 {[%emt 0:11:50]} a6 {[%emt 0:01:21]} 16. Ba4 {[%emt 0:00:38]} Qd6 {[%emt 0:05:15]} 17. Bd2 {[%emt 0:02:05]} Nd4 {[%emt 0:01:10]} 18. Qd1 {[%emt 0:10:14]} g5 {[%emt 0:00:30]} 19. b4 {[%emt 0:10:32]} Bf6 {[%emt 0:06:25]} 20. Rb1 {[%emt 0:03:25]} Nf4 {[%emt 0:01:32]} 21. Ne3 {[%emt 0:01:52]} Bh8 {[%emt 0:00:45]} 22. Nc4 {[%emt 0:05:16]} Qd5 {[%emt 0:01:38]} 23. Ne3 {[%emt 0:00:21]} Qe6 {[%emt 0:04:02]} 24. b5 {[%emt 0:00:07]} axb5 {[%emt 0:01:03]} 25. Bxb5 {[%emt 0:00:17]} Nxb5 {[%emt 0:00:21]} 26. Rxb5 {[%emt 0:00:01]} Qc6 {[%emt 0:00:31]} 27. Rb4 Rd4 {[%emt 0:01:31]} 28. f3 {[%emt 0:11:47]} Rxb4 {[%emt 0:01:45]} 29. Bxb4 {[%emt 0:00:02]} Rf7 {[%emt 0:00:09]} 30. Nc4 {[%emt 0:01:06]} g4 {[%emt 0:01:13]} 31. hxg4 {[%emt 0:02:17]} fxg4 {[%emt 0:00:33]} 32. Nxe5 {[%emt 0:01:02]} Bxe5 {[%emt 0:00:50]} 33. Rxe5 {[%emt 0:00:01]} b5 {[%emt 0:00:29]} 34. axb6 {[%emt 0:00:57]} Qxb6+ {[%emt 0:00:21]} 35. Bc5 {[%emt 0:00:02]} Qc6 {[%emt 0:00:12]} 36. Qe1 {[%emt 0:02:53]} Ng6 {[%emt 0:00:15]} 37. Re8+ {[%emt 0:00:48]} Kd7 {[%emt 0:00:03]} 38. Bf2 {[%emt 0:00:39]} gxf3 {[%emt 0:00:26]} 39. gxf3 {[%emt 0:00:34]} Nf4 {[%emt 0:00:43]} 40. Bg3 {[%emt 0:00:34]} Qg6 {[%emt 0:00:35]} 41. Re4 {[%emt 0:06:43]} Ne6 {[%emt 0:07:43]} 42. Kg2 {[%emt 0:03:10]} Nf4+ {[%emt 0:11:02]} 43. Kg1 {[%emt 0:02:08]} Ne6 {[%emt 0:00:50]} 44. Kf2 {[%emt 0:07:04]} Qf6 {[%emt 0:06:04]} 45. Qe3 {[%emt 0:01:20]} h5 {[%emt 0:03:02]} 46. Rh4 {[%emt 0:03:42]} Qf5 {[%emt 0:01:24]} 47. Qe4 {[%emt 0:05:06]} 1/2-1/2

[Event "Austrian Women Bundesliga 2023-24"]
[Site "Austria"]
[Date "2024.03.24"]
[Round "6.6"]
[White "Hrescak, Ivana"]
[Black "Mandukhai, Myagmarsuren"]
[Result "1-0"]
[ECO "D45"]
[WhiteElo "2089"]
[BlackElo "2083"]
[Annotator "NA RC"]
[PlyCount "111"]
[EventDate "2023.11.21"]
[EventType "team-tourn"]
[EventCountry "AUT"]
[SourceTitle "playchess.com"]
[Source "ChessBase"]
[SourceQuality "1"]
[TimeControl "40/5400+30:1800+30"]

1. d4 {[%emt 0:00:03]} d5 {[%emt 0:00:04]} 2. c4 {[%emt 0:00:04]} c6 {[%emt 0:00:03]} 3. Nf3 {[%emt 0:00:06]} Nf6 {[%emt 0:01:22]} 4. e3 {[%emt 0:02:00]} e6 {[%emt 0:00:05]} 5. Nc3 {[%emt 0:00:26]} Nbd7 {[%emt 0:00:12]} 6. Qc2 {[%emt 0:01:28]} Bd6 {[%emt 0:00:05]} 7. Be2 {[%emt 0:02:08]} O-O {[%emt 0:00:07]} 8. O-O {[%emt 0:00:27]} b6 {[%emt 0:00:09]} 9. e4 {[%emt 0:02:40]} dxe4 {[%emt 0:17:29]} 10. Nxe4 {[%emt 0:00:07]} Nxe4 {[%emt 0:00:07]} 11. Qxe4 {[%emt 0:00:05]} Nf6 {[%emt 0:00:44]} 12. Qxc6 {[%emt 0:07:42]} Rb8 {[%emt 0:06:45]} 13. Qa4 {[%emt 0:08:17]} Qc7 {[%emt 0:03:07]} 14. h3 {[%emt 0:08:00]} Bb7 {[%emt 0:04:10]} 15. Bd2 {[%emt 0:09:03]} Rfd8 {[%emt 0:10:25]} 16. Be3 {[%emt 0:07:38]} Bc6 {[%emt 0:27:20]} 17. Qb3 {[%emt 0:02:23]} Ba8 {[%emt 0:02:32]} 18. Qc2 {[%emt 0:04:25]} e5 {[%emt 0:02:04]} 19. dxe5 {[%emt 0:04:17]} Bxe5 {[%emt 0:00:08]} 20. Rad1 {[%emt 0:05:10]} Qc6 {[%emt 0:01:17]} 21. b3 {[%emt 0:02:00]} Rbc8 {[%emt 0:01:14]} 22. Qf5 {[%emt 0:05:30]} Re8 {[%emt 0:01:05]} 23. a4 {[%emt 0:04:49]} Bb8 {[%emt 0:02:36]} 24. Rfe1 {[%emt 0:05:59]} Re5 {[%emt 0:02:32]} 25. Qd3 {[%emt 0:04:17]} Re6 {[%emt 0:00:29]} 26. Kf1 {[%emt 0:06:32]} Rce8 {[%emt 0:02:28]} 27. Qc2 {[%emt 0:02:50]} h6 {[%emt 0:01:17]} 28. Rd4 {[%emt 0:03:16]} Be5 {[%emt 0:01:53]} 29. Rdd1 {[%emt 0:00:16]} Bd6 {[%emt 0:03:27]} 30. c5 {[%emt 0:00:17]} Qc7 {[%emt 0:04:11]} 31. Bc4 {[%emt 0:00:10]} Rxe3 {[%emt 0:02:26]} 32. Rxe3 {[%emt 0:00:37]} Qxc5 {[%emt 0:01:00]} 33. Rxe8+ {[%emt 0:00:47]} Nxe8 {[%emt 0:00:01]} 34. Qd3 {[%emt 0:00:44]} Be7 {[%emt 0:00:47]} 35. Re1 {[%emt 0:01:09]} Nf6 {[%emt 0:01:16]} 36. Re5 {[%emt 0:00:05]} Qa3 {[%emt 0:00:27]} 37. Qf5 {[%emt 0:00:50]} Bb7 {[%emt 0:01:49]} 38. Re1 {[%emt 0:00:44]} Bb4 {[%emt 0:00:26]} 39. Rd1 {[%emt 0:00:23]} Be4 {[%emt 0:00:31]} 40. Qc8+ {[%emt 0:00:40]} Kh7 {[%emt 0:00:41]} 41. Bxf7 {[%emt 0:09:33]} Bc5 {[%emt 0:04:50]} 42. Ne5 {[%emt 0:10:22]} h5 {[%emt 0:06:32]} 43. Nd7 {[%emt 0:02:58]} Qb2 {[%emt 0:00:23]} 44. Nxc5 {[%emt 0:03:18]} bxc5 {[%emt 0:13:16]} 45. Qxc5 {[%emt 0:01:11]} a6 {[%emt 0:00:10]} 46. Re1 {[%emt 0:02:29]} Bc2 {[%emt 0:04:13]} 47. Kg1 {[%emt 0:01:42]} Bd3 {[%emt 0:00:44]} 48. Re3 {[%emt 0:02:09]} Qb1+ {[%emt 0:01:49]} 49. Kh2 {[%emt 0:00:01]} Bf5 {[%emt 0:01:12]} 50. Re5 {[%emt 0:01:30]} g6 {[%emt 0:00:49]} 51. Qe7 {[%emt 0:00:43]} Qc1 {[%emt 0:01:44]} 52. Re3 {[%emt 0:00:58]} Ng8 {[%emt 0:01:00]} 53. Bxg8+ {[%emt 0:00:39]} Kxg8 {[%emt 0:00:05]} 54. Qb7 {[%emt 0:00:46]} Be6 {[%emt 0:00:17]} 55. Rxe6 {[%emt 0:00:37]} Qf4+ {[%emt 0:00:07]} 56. g3 {[%emt 0:00:17]} 1-0